{"text_format":"3","workbook":"xlsx","n_sheets":2,"sheets":["DATOS DE CRECIMIENTO","GR{AFICO DE CRECIMIENTO"],"not_rendered":{"charts":1,"defined_names":3},"read":"whole","date_system":"1900"}

{"sheet":"DATOS DE CRECIMIENTO","index":0,"n_rows":23,"n_cols":8,"rows_kept":23,"merged":[[0,1,0,7],[1,2,1,7]]}
[null,"Crecimiento del bebé "]
[null,"Nombre del bebé:","Nombre"]
[null,"Edad","Libras","Onzas","Peso (lb)","Peso\nPercentil","Altura (in)","Altura\nPercentil"]
[null,"Al nacer",7,null,{"$f":"IF(COUNT(Datos[[#This Row],[Libras]:[Onzas]])>0,Datos[[#This Row],[Libras]]+(Datos[[#This Row],[Onzas]]/16),NA())","v":7},40,19.5,70]
[null,"4 días",6,8,{"$f":"IF(COUNT(Datos[[#This Row],[Libras]:[Onzas]])>0,Datos[[#This Row],[Libras]]+(Datos[[#This Row],[Onzas]]/16),NA())","v":6.5},41,19.5,70]
[null,"7 días",6,4.8,{"$f":"IF(COUNT(Datos[[#This Row],[Libras]:[Onzas]])>0,Datos[[#This Row],[Libras]]+(Datos[[#This Row],[Onzas]]/16),NA())","v":6.3},42,20,71]
[null,"11 días",6,9.6,{"$f":"IF(COUNT(Datos[[#This Row],[Libras]:[Onzas]])>0,Datos[[#This Row],[Libras]]+(Datos[[#This Row],[Onzas]]/16),NA())","v":6.6},43,20,71]
[null,"14 días",7,null,{"$f":"IF(COUNT(Datos[[#This Row],[Libras]:[Onzas]])>0,Datos[[#This Row],[Libras]]+(Datos[[#This Row],[Onzas]]/16),NA())","v":7},44,20,71]
[null,"18 días",7,12,{"$f":"IF(COUNT(Datos[[#This Row],[Libras]:[Onzas]])>0,Datos[[#This Row],[Libras]]+(Datos[[#This Row],[Onzas]]/16),NA())","v":7.75},45,21,72]
[null,"21 días",8,8,{"$f":"IF(COUNT(Datos[[#This Row],[Libras]:[Onzas]])>0,Datos[[#This Row],[Libras]]+(Datos[[#This Row],[Onzas]]/16),NA())","v":8.5},46,21,72]
[null,"25 días",null,null,{"$f":"IF(COUNT(Datos[[#This Row],[Libras]:[Onzas]])>0,Datos[[#This Row],[Libras]]+(Datos[[#This Row],[Onzas]]/16),NA())","v":{"$error":"#N/A"}}]
[null,"28 días",null,null,{"$f":"IF(COUNT(Datos[[#This Row],[Libras]:[Onzas]])>0,Datos[[#This Row],[Libras]]+(Datos[[#This Row],[Onzas]]/16),NA())","v":{"$error":"#N/A"}}]
[null,"5 semanas",null,null,{"$f":"IF(COUNT(Datos[[#This Row],[Libras]:[Onzas]])>0,Datos[[#This Row],[Libras]]+(Datos[[#This Row],[Onzas]]/16),NA())","v":{"$error":"#N/A"}}]
[null,"6 semanas",null,null,{"$f":"IF(COUNT(Datos[[#This Row],[Libras]:[Onzas]])>0,Datos[[#This Row],[Libras]]+(Datos[[#This Row],[Onzas]]/16),NA())","v":{"$error":"#N/A"}}]
[null,"7 semanas",null,null,{"$f":"IF(COUNT(Datos[[#This Row],[Libras]:[Onzas]])>0,Datos[[#This Row],[Libras]]+(Datos[[#This Row],[Onzas]]/16),NA())","v":{"$error":"#N/A"}}]
[null,"2 meses",null,null,{"$f":"IF(COUNT(Datos[[#This Row],[Libras]:[Onzas]])>0,Datos[[#This Row],[Libras]]+(Datos[[#This Row],[Onzas]]/16),NA())","v":{"$error":"#N/A"}}]
[null,"3 meses",null,null,{"$f":"IF(COUNT(Datos[[#This Row],[Libras]:[Onzas]])>0,Datos[[#This Row],[Libras]]+(Datos[[#This Row],[Onzas]]/16),NA())","v":{"$error":"#N/A"}}]
[null,"6 meses",null,null,{"$f":"IF(COUNT(Datos[[#This Row],[Libras]:[Onzas]])>0,Datos[[#This Row],[Libras]]+(Datos[[#This Row],[Onzas]]/16),NA())","v":{"$error":"#N/A"}}]
[null,"9 meses",null,null,{"$f":"IF(COUNT(Datos[[#This Row],[Libras]:[Onzas]])>0,Datos[[#This Row],[Libras]]+(Datos[[#This Row],[Onzas]]/16),NA())","v":{"$error":"#N/A"}}]
[null,"12 meses",null,null,{"$f":"IF(COUNT(Datos[[#This Row],[Libras]:[Onzas]])>0,Datos[[#This Row],[Libras]]+(Datos[[#This Row],[Onzas]]/16),NA())","v":{"$error":"#N/A"}}]
[null,"18 meses",null,null,{"$f":"IF(COUNT(Datos[[#This Row],[Libras]:[Onzas]])>0,Datos[[#This Row],[Libras]]+(Datos[[#This Row],[Onzas]]/16),NA())","v":{"$error":"#N/A"}}]
[null,"24 meses",null,null,{"$f":"IF(COUNT(Datos[[#This Row],[Libras]:[Onzas]])>0,Datos[[#This Row],[Libras]]+(Datos[[#This Row],[Onzas]]/16),NA())","v":{"$error":"#N/A"}}]
[null,"36 meses",null,null,{"$f":"IF(COUNT(Datos[[#This Row],[Libras]:[Onzas]])>0,Datos[[#This Row],[Libras]]+(Datos[[#This Row],[Onzas]]/16),NA())","v":{"$error":"#N/A"}}]

{"sheet":"GR{AFICO DE CRECIMIENTO","index":1,"n_rows":1,"n_cols":2,"rows_kept":1,"merged":[[0,1,1,1]]}
[null,"GRÁFICO DE CRECIMIENTO DEL BEBÉ"]